bitfinex-derivatives/quotes_BNBF0:USTF0_20250529
["timestamp","ask_amount","ask_price","bid_price","bid_amount"]
[1748482559384,0.2899265,689.83,689.46,1.05289312]
[1748482559688,0.2899265,689.83,689.47,1.05289312]
[1748482559987,0.2899265,689.83,689.48,1.05289312]
[1748482560188,0.2899265,689.83,689.49,1.05289312]
[1748482560389,0.2899265,689.83,689.5,1.05289312]
[1748482560591,0.2899265,689.83,689.42,0.468]
[1748482560985,0.2899265,689.83,689.43,1.0528839]
[1748482561187,0.2899265,689.83,689.44,1.0528839]
[1748482561388,0.2899265,689.83,689.45,1.0528839]
[1748482561584,0.2899265,689.83,689.46,1.0528839]
[1748482561788,0.2899265,689.83,689.47,1.05285745]
[1748482562086,0.2899265,689.83,689.48,1.05285745]
[1748482562289,0.2899265,689.83,689.49,1.05285745]
[1748482562487,0.2899265,689.83,689.42,0.468]
[1748482562488,0.2899265,689.83,689.5,1.05285745]
[1748482562687,0.2899265,689.83,689.51,1.05285745]
[1748482562986,0.2899265,689.83,689.52,1.05285745]
[1748482563287,0.2899265,689.83,689.53,1.05285745]
[1748482563488,0.2899265,689.83,689.54,1.05296868]
[1748482563684,0.2899265,689.83,689.55,1.05296613]
[1748482563883,0.2899265,689.83,689.56,1.05296613]
[1748482564084,0.2899265,689.83,689.57,1.05296613]
[1748482564285,0.2899265,689.83,689.58,1.05296613]
[1748482564485,0.2899265,689.83,689.59,1.05296613]
[1748482564686,0.2899265,689.83,689.6,1.05296613]
[1748482564884,0.2899265,689.83,689.61,1.05296613]
[1748482565085,0.2899265,689.83,689.62,1.05296613]
[1748482565287,0.2899265,689.83,689.63,1.05296613]
[1748482565485,0.2899265,689.83,689.64,1.05296613]
[1748482565689,0.2899265,689.83,689.65,1.05296613]
[1748482565889,0.2899265,689.83,689.66,1.05278391]
[1748482566090,0.2899265,689.83,689.67,1.05278391]
[1748482566291,0.2899265,689.83,689.68,1.05278391]
[1748482566491,0.2899265,689.83,689.69,1.05278391]
[1748482566691,0.2899265,689.83,689.7,1.05278391]
[1748482566992,0.2899265,689.83,689.71,1.05278391]
[1748482567290,0.2899265,689.83,689.72,1.05235136]
[1748482567490,0.2899265,689.83,689.73,1.05235136]
[1748482567786,0.2899265,689.83,689.74,1.05235136]
[1748482567984,0.2899265,689.83,689.75,1.05235136]
[1748482568189,0.2899265,689.83,689.42,0.468]
[1748482568589,0.2899265,689.83,689.43,1.05244819]
[1748482568786,0.2899265,689.83,689.44,1.0534166]
[1748482568992,0.2899265,689.83,689.45,1.0534166]
[1748482569192,0.2899265,689.83,689.46,1.0534166]
[1748482569488,0.2899265,689.83,689.47,1.05339071]
[1748482569692,0.2899265,689.83,689.48,1.05339071]
[1748482569892,0.2899265,689.83,689.49,1.05339071]
[1748482570191,0.2899265,689.83,689.5,1.05339071]
[1748482570392,0.2899265,689.83,689.51,1.05240825]
[1748482570591,0.2899265,689.83,689.52,1.05251195]
[1748482570788,0.2899265,689.83,689.53,1.05251195]
[1748482570986,0.2899265,689.83,689.42,0.468]
[1748482571190,0.2899265,689.83,689.43,1.0525107]
[1748482571391,0.2899265,689.83,689.44,1.0525107]
[1748482571587,0.2899265,689.83,689.45,1.0525107]
[1748482571891,0.2899265,689.83,689.46,1.0525107]
[1748482572089,0.2899265,689.83,689.47,1.0525107]
[1748482572290,0.2899265,689.83,689.48,1.0525107]
[1748482572589,0.2899265,689.83,689.49,1.05273291]
[1748482572793,0.2899265,689.83,689.5,1.05272284]
[1748482572992,0.2899265,689.83,689.51,1.05272284]
[1748482573191,0.2899265,689.83,689.52,1.05272284]
[1748482573394,0.2899265,689.83,689.53,1.05272284]
[1748482573591,0.2899265,689.83,689.54,1.05271439]
[1748482573792,0.2899265,689.83,689.55,1.05271439]
[1748482573994,0.2899265,689.83,689.56,1.05271439]
[1748482574296,0.2899265,689.83,689.57,1.05271439]
[1748482574595,0.2899265,689.83,689.58,1.05271439]
[1748482574799,0.2899265,689.83,689.59,1.05381643]
[1748482574998,0.2899265,689.83,689.6,1.05381539]
[1748482575196,0.2899265,689.83,689.42,0.468]
[1748482575396,0.2899265,689.83,689.43,1.05381546]
[1748482575597,0.2899265,689.83,689.44,1.05381546]
[1748482575798,0.2899265,689.83,689.45,1.05381546]
[1748482575993,0.2899265,689.83,689.46,1.05381546]
[1748482576197,0.2899265,689.83,689.47,1.05380685]
[1748482576398,0.2899265,689.83,689.48,1.0538058]
[1748482576593,0.2899265,689.83,689.49,1.0538058]
[1748482576794,0.2899265,689.83,689.5,1.0538058]
[1748482576996,0.2899265,689.83,689.51,1.0538058]
[1748482577199,0.2899265,689.83,689.42,0.468]
[1748482577200,0.2899265,689.83,689.52,1.0538058]
[1748482577398,0.2899265,689.83,689.53,1.0538058]
[1748482577599,0.2899265,689.83,689.54,1.0538058]
[1748482577796,0.2899265,689.83,689.55,1.0538058]
[1748482578101,0.2899265,689.83,689.56,1.0538058]
[1748482578401,0.2899265,689.83,689.57,1.0538058]
[1748482578696,0.2899265,689.83,689.58,1.0538058]
[1748482579000,0.2899265,689.83,689.59,1.05381724]
[1748482579195,0.2899265,689.83,689.6,1.05381724]
[1748482579395,0.2899265,689.83,689.61,1.05381724]
[1748482579596,0.2899265,689.83,689.62,1.05381724]
[1748482579798,0.2899265,689.83,689.63,1.05381724]
[1748482579999,0.2899265,689.83,689.64,1.05381724]
[1748482580196,0.2899265,689.83,689.65,1.05381724]
[1748482580398,0.2899265,689.83,689.66,1.05381724]
[1748482580600,0.2899265,689.83,689.67,1.05381724]
[1748482580806,0.2899265,689.83,689.68,1.05381724]
[1748482581001,0.2899265,689.83,689.69,1.05381724]
[1748482581196,0.2899265,689.83,689.7,1.05381724]
[1748482581497,0.2899265,689.83,689.71,1.05391263]
[1748482581700,0.2899265,689.83,689.72,1.05391263]
[1748482582000,0.2899265,689.83,689.73,1.05391263]
[1748482582201,0.2899265,689.83,689.74,1.05391263]
[1748482582499,0.2899265,689.83,689.75,1.05391263]
[1748482582700,0.2899265,689.83,689.76,1.05391263]
[1748482582896,0.2899265,689.83,689.42,0.468]
[1748482583200,0.2899265,689.83,689.43,1.05416244]
[1748482583399,0.2899265,689.83,689.44,1.05416244]
[1748482583599,0.2899265,689.83,689.45,1.05416244]
[1748482583795,0.2899265,689.83,689.46,1.05416244]
[1748482584000,0.2899265,689.83,689.47,1.05461455]
[1748482584200,0.2899265,689.83,689.48,1.05461455]
[1748482584399,0.2899265,689.83,689.49,1.05461455]
[1748482584596,0.2899265,689.83,689.5,1.05461455]
[1748482584797,0.2899265,689.83,689.51,1.05465427]
[1748482584998,0.2899265,689.83,689.52,1.05465427]
[1748482585196,0.2899265,689.83,689.42,0.468]
[1748482585197,0.2899265,689.83,689.53,1.05465427]
[1748482585401,0.2899265,689.83,689.54,1.05465427]
[1748482585601,0.2899265,689.83,689.55,1.05465427]
[1748482585799,0.2899265,689.83,689.56,1.05465427]
[1748482586003,0.2899265,689.83,689.57,1.05465427]
[1748482586200,0.2899265,689.83,689.58,1.05465427]
[1748482586401,0.2899265,689.83,689.59,1.0391024]
[1748482586600,0.2899265,689.83,689.6,1.0391024]
[1748482586906,0.2899265,689.83,689.61,1.0391024]
[1748482587106,0.2899265,689.83,689.62,1.0391024]
[1748482587306,0.2899265,689.83,689.63,1.03907539]
[1748482587605,0.2899265,689.83,689.64,1.03907539]
[1748482587804,0.2899265,689.83,689.42,0.468]
[1748482587805,0.2899265,689.83,689.65,1.03909144]
[1748482588007,0.2899265,689.83,689.42,0.468]
[1748482588206,0.2899265,689.83,689.43,1.03909162]
[1748482588505,0.2899265,689.83,689.42,0.468]
[1748482588506,0.2899265,689.83,689.44,1.03909162]
[1748482588707,0.2899265,689.83,689.45,1.03909162]
[1748482589003,0.2899265,689.83,689.46,1.03971097]
[1748482589207,0.2899265,689.83,689.47,1.03971097]
[1748482589405,0.2899265,689.83,689.42,0.468]
[1748482589701,0.2899265,689.83,689.43,1.03971507]
[1748482589906,0.2899265,689.83,689.44,1.03971507]
[1748482590103,0.2899265,689.83,689.45,1.03971507]
[1748482590302,0.2899265,689.83,689.46,1.03971507]
[1748482590507,0.2899265,689.83,689.47,1.03971507]
[1748482590707,0.2899265,689.83,689.48,1.03968951]
[1748482591004,0.2899265,689.83,689.49,1.03968756]
[1748482591206,0.2899265,689.83,689.5,1.03968756]
[1748482591406,0.2899265,689.83,689.42,0.468]
[1748482591407,0.2899265,689.83,689.51,1.03968756]
[1748482591608,0.2899265,689.83,689.52,1.03968756]
[1748482591805,0.2899265,689.83,689.53,1.03968756]
[1748482592006,0.2899265,689.83,689.54,1.03968756]
[1748482592209,0.2899265,689.83,689.42,0.468]
[1748482592708,0.2899265,689.83,689.43,1.03955999]
[1748482592906,0.2899265,689.83,689.44,1.03955999]
[1748482593109,0.2899265,689.83,689.42,0.468]
[1748482593310,0.2899265,689.83,689.43,1.0395583]
[1748482593507,0.2899265,689.83,689.44,1.03914301]
[1748482593706,0.2899265,689.83,689.42,0.468]
[1748482593911,0.2899265,689.83,689.43,1.03915951]
[1748482594206,0.2899265,689.83,689.44,1.03915951]
[1748482594405,0.2899265,689.83,689.45,1.03915951]
[1748482594611,0.2899265,689.83,689.46,1.03915951]
[1748482594811,0.2899265,689.83,689.47,1.03915951]
[1748482595012,0.2899265,689.83,689.48,1.03852479]
[1748482595211,0.2899265,689.83,689.49,1.03852479]
[1748482595412,0.2899265,689.83,689.42,0.468]
[1748482595612,0.2899265,689.83,689.43,1.03853227]
[1748482595808,0.2899265,689.83,689.44,1.03853227]
[1748482596108,0.2899265,689.83,689.45,1.03846673]
[1748482596413,0.2899265,689.83,689.46,1.03846663]
[1748482596613,0.2899265,689.83,689.47,1.03846663]
[1748482596807,0.2899265,689.83,689.48,1.03847554]
[1748482597008,0.2899265,689.83,689.49,1.03847554]
[1748482597210,0.2899265,689.83,689.5,1.03847582]
[1748482597412,0.2899265,689.83,689.51,1.03847582]
[1748482597611,0.2899265,689.83,689.52,1.0384345]
[1748482597811,0.2899265,689.83,689.53,1.03844872]
[1748482598007,0.2899265,689.83,689.54,1.03844872]
[1748482598210,0.2899265,689.83,689.55,1.03844872]
[1748482598409,0.2899265,689.83,689.56,1.03844872]
[1748482598710,0.2899265,689.83,689.57,1.03844872]
[1748482598911,0.2899265,689.83,689.58,1.03844872]
[1748482599108,0.2899265,689.83,689.59,1.03844872]
[1748482599308,0.2899265,689.83,689.6,1.03844872]
[1748482599512,0.2899265,689.83,689.61,1.03844872]
[1748482599708,0.2899265,689.83,689.62,1.03844872]
[1748482599911,0.2899265,689.83,689.63,1.03844872]
[1748482600110,0.2899265,689.83,689.64,1.03838885]
[1748482600313,0.2899265,689.83,689.65,1.03838885]
[1748482600510,0.2899265,689.83,689.66,1.03838885]
[1748482600709,0.2899265,689.83,689.67,1.03838885]
[1748482600913,0.2899265,689.83,689.68,1.03838885]
[1748482601110,0.2899265,689.83,689.42,0.468]
[1748482601111,0.2899265,689.83,689.69,1.03838885]
[1748482601310,0.2899265,689.83,689.7,1.03831373]
[1748482601512,0.2899265,689.83,689.71,1.03831051]
[1748482601711,0.2899265,689.83,689.72,1.03831051]
[1748482602009,0.2899265,689.83,689.42,0.468]
[1748482610924,0.2899265,689.83,689.43,1.07002304]
[1748482611124,0.2899265,689.83,689.42,0.468]
[1748482611325,0.2899265,689.83,689.43,1.07002344]
[1748482611622,0.2899265,689.83,689.44,1.07003733]
[1748482611822,0.2899265,689.83,689.45,1.07003733]
[1748482612022,0.2899265,689.83,689.46,1.07003733]
[1748482612221,0.2899265,689.83,689.47,1.07003733]
[1748482612425,0.2899265,689.83,689.48,1.07003733]
[1748482612627,0.2899265,689.83,689.49,1.07003733]
[1748482612923,0.2899265,689.83,689.5,1.07003733]
[1748482613123,0.2899265,689.83,689.51,1.07003733]
[1748482613323,0.2899265,689.83,689.52,1.07003733]
[1748482613522,0.2899265,689.83,689.53,1.04548953]
[1748482613723,0.2899265,689.83,689.54,1.04548953]
[1748482613922,0.2899265,689.83,689.42,0.468]
[1748482620034,0.2899265,689.83,689.43,1.03885201]
[1748482620234,0.2899265,689.83,689.44,1.03885201]
[1748482620433,0.2899265,689.83,689.45,1.03885201]
[1748482620633,0.2899265,689.83,689.42,0.468]
[1748482620832,0.2899265,689.83,689.43,1.03888867]
[1748482621035,0.2899265,689.83,689.44,1.03888867]
[1748482621331,0.2899265,689.83,689.45,1.03888867]
[1748482621537,0.2899265,689.83,689.46,1.03888867]
[1748482621837,0.2899265,689.83,689.47,1.03888867]
[1748482622038,0.2899265,689.83,689.48,1.03890857]
[1748482622232,0.2899265,689.83,689.49,1.03890857]
[1748482622432,0.2899265,689.83,689.5,1.03890857]
[1748482622636,0.2899265,689.83,689.51,1.03890857]
[1748482622832,0.2899265,689.83,689.52,1.03890857]
[1748482623032,0.2899265,689.83,689.53,1.03890857]
[1748482623336,0.2899265,689.83,689.54,1.03890857]
[1748482623537,0.2899265,689.83,689.55,1.03890857]
[1748482623734,0.2899265,689.83,689.56,1.03890857]
[1748482623931,0.2899265,689.83,689.57,1.03887733]
[1748482624132,0.2899265,689.83,689.58,1.03887733]
[1748482624337,0.2899265,689.83,689.59,1.03887245]
[1748482624537,0.2899265,689.83,689.6,1.03885669]
[1748482624833,0.2899265,689.83,689.61,1.0388567]
[1748482625038,0.2899265,689.83,689.62,1.0388567]
[1748482625238,0.2899265,689.83,689.42,0.468]
[1748482625239,0.2899265,689.83,689.63,1.0388567]
[1748482625432,0.2899265,689.83,689.64,1.0388567]
[1748482625731,0.2899265,689.83,689.65,1.0388567]
[1748482625935,0.2899265,689.83,689.66,1.0388567]
[1748482626238,0.2899265,689.83,689.67,1.0388567]
[1748482626437,0.2899265,689.83,689.68,1.0388567]
[1748482626633,0.2899265,689.83,689.69,1.0388567]
[1748482626838,0.2899265,689.83,689.42,0.468]
[1748482627035,0.2899265,689.83,689.43,1.03876305]
[1748482627238,0.2899265,689.83,689.44,1.03876305]
[1748482627537,0.2899265,689.83,689.45,1.03877521]
[1748482627732,0.2899265,689.83,689.42,0.468]
[1748482627733,0.2899265,689.83,689.46,1.03876642]
[1748482627934,0.2899265,689.83,689.47,1.03876642]
[1748482628133,0.2899265,689.83,689.48,1.03876642]
[1748482628338,0.2899265,689.83,689.49,1.03876642]
[1748482628539,0.2899265,689.83,689.5,1.03876642]
[1748482628737,0.2899265,689.83,689.42,0.468]
[1748482629041,0.2899265,689.83,689.43,1.03882433]
[1748482629336,0.2899265,689.83,689.44,1.03882433]
[1748482629541,0.2899265,689.83,689.45,1.03882433]
[1748482629737,0.2899265,689.83,689.46,1.03882433]
[1748482629942,0.2899265,689.83,689.47,1.03882433]
[1748482630242,0.2899265,689.83,689.48,1.03882433]
[1748482630441,0.2899265,689.83,689.49,1.0388426]
[1748482630641,0.2899265,689.83,689.5,1.0388426]
[1748482630840,0.2899265,689.83,689.51,1.0388426]
[1748482631042,0.2899265,689.83,689.52,1.0388426]
[1748482631343,0.2899265,689.83,689.53,1.0388426]
[1748482631639,0.2899265,689.83,689.54,1.0388426]
[1748482631841,0.2899265,689.83,689.55,1.0388426]
[1748482632039,0.2899265,689.83,689.42,0.468]
[1748482687796,0.2899265,689.83,689.43,1.06614377]
[1748482687991,0.2899265,689.83,689.42,0.468]
[1748482688289,0.2899265,689.83,689.43,1.06614443]
[1748482688494,0.2899265,689.83,689.44,1.06614443]
[1748482688694,0.2899265,689.83,689.42,0.468]
[1748482688889,0.2899265,689.83,689.43,1.06638967]
[1748482689094,0.2899265,689.83,689.44,1.06638967]
[1748482689293,0.2899265,689.83,689.42,0.468]
[1748482689694,0.2899265,689.83,689.43,1.06662743]
[1748482689890,0.2899265,689.83,689.44,1.06662743]
[1748482690094,0.2899265,689.83,689.45,1.06662743]
[1748482690289,0.2899265,689.83,689.42,0.468]
[1748482690496,0.2899265,689.83,689.43,1.06665209]
[1748482690695,0.2899265,689.83,689.44,1.06665209]
[1748482690891,0.2899265,689.83,689.45,1.06665209]
[1748482691092,0.2899265,689.83,689.42,0.468]
[1748482691301,0.2899265,689.83,689.43,1.06632392]
[1748482691495,0.2899265,689.83,689.42,0.468]
[1748482691696,0.2899265,689.83,689.43,1.06632392]
[1748482691895,0.2899265,689.83,689.42,0.468]
[1748482691896,0.2899265,689.83,689.44,1.06632392]
[1748482692096,0.2899265,689.83,689.45,1.06632392]
[1748482692392,0.2899265,689.83,689.46,1.06634895]
[1748482692597,0.2899265,689.83,689.42,0.468]
[1748482692796,0.2899265,689.83,689.43,1.06636403]
[1748482693002,0.2899265,689.83,689.44,1.06636403]
[1748482693297,0.2899265,689.83,689.45,1.06636403]
[1748482693503,0.2899265,689.83,689.46,1.06638902]
[1748482693695,0.2899265,689.83,689.47,1.06665561]
[1748482693901,0.2899265,689.83,689.42,0.468]
[1748482694100,0.2899265,689.83,689.43,1.06663409]
[1748482694397,0.2899265,689.83,689.44,1.06663409]
[1748482694598,0.2899265,689.83,689.45,1.06690294]
[1748482694797,0.2899265,689.83,689.46,1.06690294]
[1748482694995,0.2899265,689.83,689.47,1.06690294]
[1748482695195,0.2899265,689.83,689.48,1.06690294]
[1748482695497,0.2899265,689.83,689.42,0.468]
[1748482695697,0.2899265,689.83,689.43,1.06704076]
[1748482695900,0.2899265,689.83,689.44,1.06704076]
[1748482696100,0.2899265,689.83,689.45,1.06704076]
[1748482696301,0.2899265,689.83,689.46,1.06731973]
[1748482696501,0.2899265,689.83,689.47,1.06731973]
[1748482696800,0.2899265,689.83,689.48,1.06731973]
[1748482697001,0.2899265,689.83,689.49,1.06731973]
[1748482697199,0.2899265,689.83,689.5,1.06731973]
[1748482697402,0.2899265,689.83,689.42,0.468]
[1748482697601,0.2899265,689.83,689.43,1.06773032]
[1748482697802,0.2899265,689.83,689.44,1.06773032]
[1748482697999,0.2899265,689.83,689.45,1.06773032]
[1748482698298,0.2899265,689.83,689.46,1.0420238]
[1748482698503,0.2899265,689.83,689.47,1.0420238]
[1748482698703,0.2899265,689.83,689.42,0.468]
[1748482699003,0.2899265,689.83,689.43,1.04203526]
[1748482699204,0.2899265,689.83,689.42,0.468]
[1748482701303,0.2899265,689.83,689.43,1.05974789]
[1748482701507,0.2899265,689.83,689.42,0.468]
[1748482701707,0.2899265,689.83,689.43,1.0597735]
[1748482701908,0.2899265,689.83,689.44,1.0597735]
[1748482702110,0.2899265,689.83,689.45,1.0597735]
[1748482702409,0.2899265,689.83,689.42,0.468]
[1748482702809,0.2899265,689.83,689.43,1.06058966]
[1748482703105,0.2899265,689.83,689.44,1.06058966]
[1748482703409,0.2899265,689.83,689.45,1.06044139]
[1748482703612,0.2899265,689.83,689.42,0.468]
[1748482703909,0.2899265,689.83,689.43,1.06032217]
[1748482704104,0.2899265,689.83,689.44,1.06032217]
[1748482704304,0.2899265,689.83,689.42,0.468]
[1748482704507,0.2899265,689.83,689.43,1.0605391]
[1748482704707,0.2899265,689.83,689.42,0.468]
[1748482704909,0.2899265,689.83,689.43,1.06053927]
[1748482705110,0.2899265,689.83,689.42,0.468]
[1748482787766,0.2899265,689.83,687.87,0.46048635]
[1748482787967,0.2899265,689.83,687.88,1.04564559]
[1748482788166,0.2899265,689.83,687.89,1.04564559]
[1748482788368,0.2899265,689.83,687.9,1.04564559]
[1748482788569,0.2899265,689.83,687.91,1.04564559]
[1748482788772,0.2899265,689.83,687.92,1.04581073]
[1748482789070,0.2899265,689.83,687.93,1.0440228]
[1748482789269,0.2899265,689.83,687.87,0.46048635]
[1748482789470,0.2899265,689.83,687.77,0.46048635]
[1748482789674,0.2899265,689.83,687.72,0.46048635]
[1748482789871,0.2899265,689.83,687.73,1.04403864]
[1748482790066,0.2899265,689.83,687.74,1.04403864]
[1748482790269,0.2899265,689.83,687.75,1.04403864]
[1748482790466,0.2899265,689.83,687.76,1.04403864]
[1748482790666,0.2899265,689.83,687.77,1.04403864]
[1748482790867,0.2899265,689.83,687.78,1.04403864]
[1748482791170,0.2899265,689.83,687.79,1.04403864]
[1748482791469,0.2899265,689.83,687.73,0.672]
[1748482791665,0.2899265,689.83,687.74,1.04267014]
[1748482791868,0.2899265,689.83,687.75,1.04267026]
[1748482792068,0.2899265,689.83,687.76,1.04267026]
[1748482792269,0.2899265,689.83,687.77,1.04267026]
[1748482792472,0.2899265,689.83,687.78,1.04267026]
[1748482792672,0.2899265,689.83,687.79,1.03996498]
[1748482792873,0.2899265,689.83,687.8,1.03996498]
[1748482793069,0.2899265,689.83,687.81,1.03996498]
[1748482793274,0.2899265,689.83,687.82,1.03996175]
[1748482793469,0.2899265,689.83,687.83,1.03996165]
[1748482793675,0.2899265,689.83,687.73,0.672]
[1748482794074,0.2899265,689.83,687.74,1.03996165]
[1748482794273,0.2899265,689.83,687.75,1.03996165]
[1748482794569,0.2899265,689.83,687.73,0.672]
[1748482795375,0.2899265,689.83,687.74,1.04039717]
[1748482795576,0.2899265,689.83,687.73,0.672]
[1748482795777,0.2899265,689.83,687.74,1.04039688]
[1748482795971,0.2899265,689.83,687.75,1.04039792]
[1748482796171,0.2899265,689.83,687.73,0.672]
[1748482796471,0.2899265,689.83,687.74,1.04039836]
[1748482796677,0.2899265,689.83,687.75,1.04039836]
[1748482796875,0.2899265,689.83,687.76,1.04039836]
[1748482797175,0.2899265,689.83,687.77,1.04039836]
[1748482797379,0.2899265,689.83,687.73,0.672]
[1748482798277,0.2899265,689.83,687.74,1.04094319]
[1748482798476,0.2899265,689.83,687.73,0.672]
[1748482799579,0.2899265,689.83,687.93,0.46048635]
[1748482800577,0.2899265,689.83,687.94,1.04090262]
[1748482800778,0.2899265,689.83,687.93,0.46048635]
[1748482800978,0.2899265,689.83,687.94,1.04090282]
[1748482801278,0.2899265,689.83,688.06,0.46048635]
[1748482801478,0.2899265,689.83,688.07,1.04081599]
[1748482801778,0.2899265,689.83,688.06,0.46048635]
[1748482801779,0.2899265,689.83,688.08,1.04081751]
[1748482801977,0.2899265,689.83,688.06,0.46048635]
[1748482802380,0.2899265,689.83,687.56,0.36057401]
[1748482802381,0.2899265,689.83,688.07,0.46048635]
[1748482802576,0.2899265,689.83,688.08,1.50130517]
[1748482802782,0.2899265,689.83,688.08,0.46048635]
[1748482803182,0.2899265,689.83,688.09,0.46048635]
[1748482803382,0.2899265,689.83,687.11,0.55258362]
[1748482803383,0.2899265,689.83,688.1,0.46048635]
[1748482803780,0.2899265,689.83,688.11,0.686]
[1748482803978,0.2899265,689.83,688.12,1.04079161]
[1748482804182,0.2899265,689.83,688.11,0.686]
[1748482804379,0.2899265,689.83,688.12,1.04079516]
[1748482804584,0.2899265,689.83,688.13,1.04079516]
[1748482804779,0.2899265,689.83,688.11,0.686]
[1748482804780,0.2899265,689.83,688.14,1.04079516]
[1748482805084,0.2899265,689.83,688.15,1.04032533]
[1748482805282,0.2899265,689.83,688.16,1.04032533]
[1748482805488,0.2899265,689.83,688.17,1.04032533]
[1748482805683,0.2899265,689.83,688.18,1.04035399]
[1748482805985,0.2899265,689.83,688.19,1.0403689]
[1748482806183,0.2899265,689.83,688.2,1.0403689]
[1748482806485,0.2899265,689.83,688.21,1.0407303]
[1748482806685,0.2899265,689.83,688.22,1.04073133]
[1748482806881,0.2899265,689.83,688.23,1.04073133]
[1748482807084,0.2899265,689.83,688.24,1.04073133]
[1748482807285,0.2899265,689.83,688.25,1.04073133]
[1748482807482,0.2899265,689.83,688.26,1.04059597]
[1748482807781,0.2899265,689.83,688.27,1.04059597]
[1748482807983,0.2899265,689.83,688.28,1.04059597]
[1748482808179,0.2899265,689.83,688.29,1.04059597]
[1748482808384,0.2899265,689.83,688.3,1.0412082]
[1748482808585,0.2899265,689.83,688.11,0.686]
[1748482808794,0.2899265,689.83,688.12,1.04120867]
[1748482808985,0.2899265,689.83,688.13,1.04120867]
[1748482809284,0.2899265,689.83,688.14,1.04113295]
[1748482809481,0.2899265,689.83,688.15,1.04131809]
[1748482809680,0.2899265,689.83,688.11,0.686]
[1748482809984,0.2899265,689.83,688.12,1.04131705]
[1748482810283,0.2899265,689.83,688.13,1.04131705]
[1748482810488,0.2899265,689.83,688.14,1.04131705]
[1748482810782,0.2899265,689.83,688.15,1.04131705]
[1748482810989,0.2899265,689.83,688.16,1.04125261]
[1748482811282,0.2899265,689.83,688.17,1.04123233]
[1748482811585,0.2899265,689.83,688.18,1.04123233]
[1748482811782,0.2899265,689.83,688.11,0.686]
[1748482811783,0.2899265,689.83,688.19,1.04123233]
[1748482811982,0.2899265,689.83,688.2,1.04123266]
[1748482812182,0.2899265,689.83,688.21,1.04123266]
[1748482812382,0.2899265,689.83,688.22,1.04123266]
[1748482812586,0.2899265,689.83,688.11,0.686]
[1748482812784,0.2899265,689.83,688.12,1.04117651]
[1748482812981,0.2899265,689.83,688.13,1.04117634]
[1748482813185,0.2899265,689.83,688.14,1.04117634]
[1748482813385,0.2899265,689.83,688.11,0.686]
[1748482813683,0.2899265,689.83,688.12,1.04118026]
[1748482813883,0.2899265,689.83,688.13,1.04118026]
[1748482814084,0.2899265,689.83,688.14,1.04112297]
[1748482814283,0.2899265,689.83,688.15,1.04112297]
[1748482814486,0.2899265,689.83,688.16,1.04112297]
[1748482814685,0.2899265,689.83,688.17,1.04103973]
[1748482814885,0.2899265,689.83,688.11,0.686]
[1748482815087,0.2899265,689.83,688.12,1.04103973]
[1748482815286,0.2899265,689.83,688.11,0.686]
[1748482815485,0.2899265,689.83,688.12,1.04103973]
[1748482815687,0.2899265,689.83,688.13,1.04103973]
[1748482815886,0.2899265,689.83,688.14,1.04103973]
[1748482816090,0.2899265,689.83,688.15,1.04103973]
[1748482816291,0.2899265,689.83,688.16,1.04098368]
[1748482816492,0.2899265,689.83,688.17,1.04101817]
[1748482816792,0.2899265,689.83,688.11,0.686]
[1748482816992,0.2899265,689.83,688.12,1.04096354]
[1748482817191,0.2899265,689.83,688.13,1.04096597]
[1748482817389,0.2899265,689.83,688.11,0.686]
[1748482817594,0.2899265,689.83,688.12,1.04096913]
[1748482817795,0.2899265,689.83,688.13,1.04096892]
[1748482817987,0.2899265,689.83,688.11,0.686]
[1748482818300,0.2899265,689.83,688.12,1.04096884]
[1748482818494,0.2899265,689.83,688.13,1.04096884]
[1748482818696,0.2899265,689.83,688.14,1.04096884]
[1748482818896,0.2899265,689.83,688.11,0.686]
[1748482819491,0.2899265,689.83,688.12,1.04142073]
[1748482819704,0.2899265,689.83,688.11,0.686]
[1748482820090,0.2899265,689.83,688.12,1.0414208]
[1748482820291,0.2899265,689.83,688.11,0.686]
[1748482820497,0.2899265,689.83,688.12,1.04142313]
[1748482820792,0.2899265,689.83,688.13,1.04143277]
[1748482821099,0.2899265,689.83,688.11,0.686]
[1748482822098,0.2899265,689.83,688.12,1.04142189]
[1748482822396,0.2899265,689.83,688.13,1.04142189]
[1748482822596,0.2899265,689.83,688.14,1.04142189]
[1748482822796,0.2899265,689.83,688.15,1.04142189]
[1748482822997,0.2899265,689.83,688.16,1.04124691]
[1748482823197,0.2899265,689.83,688.17,1.04124691]
[1748482823494,0.2899265,689.83,688.18,1.04124691]
[1748482823793,0.2899265,689.83,688.19,1.04116092]
[1748482823995,0.2899265,689.83,688.2,1.04116092]
[1748482824193,0.2899265,689.83,688.21,1.04116092]
[1748482824397,0.2899265,689.83,688.22,1.04116092]
[1748482824599,0.2899265,689.83,688.11,0.686]
[1748482824600,0.2899265,689.83,688.23,1.04116092]
[1748482824794,0.2899265,689.83,688.24,1.04109608]
[1748482824993,0.2899265,689.83,688.25,1.04102118]
[1748482825194,0.2899265,689.83,688.11,0.686]
[1748482825398,0.2899265,689.83,688.12,1.04101873]